Cogmind - Beta 9.1 @@@ ROGUE MODE // 2019.11.03 @ 23:23:55 // Halloween2019/Abominations Player: Trione Result: Destroyed by Lesser Abomination with Light EM Pulse Cannon Performance ------------- Evolutions (1) 500 Regions Visited (2) 400 Robots Destroyed (12) 60 Value Destroyed (610) 610 Prototype IDs (1) 20 Alien Tech Used (0) 0 Bonus (0) 0 TOTAL SCORE: 1590 Bonus ------- None Cogmind --------- Core Integrity 0/400 Matter 300/300 Energy 100/100 System Corruption 0% Temperature Cool (0) Location -9/Materials Parts ------- Power (1) Propulsion (2) Utility (3) Weapon (3) Inventory (4) Light Ion Engine Small Storage Unit Improved Light Cannon Improved Light Cannon Peak State ------------ Power Ion Engine Propulsion Wheel Compact Wheel Utility Cooling System Large Storage Unit Large Storage Unit Weapon Particle Gun Improved Assault Rifle Improved Assault Rifle Inventory Ion Engine Light Ion Engine Light Treads Light Treads Small Storage Unit Medium Laser Small Laser Particle Gun Particle Gun Improved Assault Rifle Improved Assault Rifle Improved Light Cannon Improved Light Cannon [Rating: 17] Favorites ----------- Power Ion Engine Engine Ion Engine Propulsion Compact Wheel Treads Light Treads Wheel Compact Wheel Utility Large Storage Unit Device Cooling System Storage Large Storage Unit Weapon Improved Assault Rifle Energy Gun Medium Laser Ballistic Gun Improved Assault Rifle Build | -11 -10 -9 ------- Run | Scr Mat Mat Slots Evolved 2 | . . 2 Power . | . . . Propulsion . | . . . Utility 1 | . . 1 Weapon 1 | . . 1 Parts Attached 18 | 6 2 10 Power 1 | 1 . . Engine 1 | 1 . . Core . | . . . Reactor . | . . . Propulsion 4 | 2 . 2 Treads 1 | . . 1 Leg . | . . . Wheel 3 | 2 . 1 Hover . | . . . Flight . | . . . Utility 4 | 1 2 1 Device 1 | . . 1 Storage 3 | 1 2 . Processor . | . . . Hackware . | . . . Protection . | . . . Artifact . | . . . Weapon 9 | 2 . 7 Energy Gun 5 | . . 5 Energy Cannon . | . . . Ballistic Gun 4 | 2 . 2 Ballistic Cannon . | . . . Launcher . | . . . Special Weapon . | . . . Impact Weapon . | . . . Slashing Weapon . | . . . Piercing Weapon . | . . . Special Melee Weapon . | . . . Unidentified Prototypes 1 | . . 1 Parts Lost 12 | . . 12 Power 1 | . . 1 Propulsion 3 | . . 3 Utility 1 | . . 1 Weapon 7 | . . 7 Highest Loss Streak 7 | . . 7 Average Slot Usage (%) 89 | . 93 87 Engine 11 | . 14 10 Wheel 22 | . 28 20 Device 3 | . . 4 Storage 21 | . 21 21 Energy Gun 6 | . . 9 Ballistic Gun 23 | . 28 21 Naked Turns 7 | . . 7 Heaviest Build 47 | 13 41 47 Greatest Support 26 | 26 26 26 Greatest Overweight (x) 2 | . 1 2 Average Overweight (x) . | . . 1 Largest Inventory Capacity 16 | 6 16 16 Average Capacity 13 | 5 11 15 Most Carried 16 | 6 12 16 Average Carried 11 | 3 6 14 Final Capacity 16 | 6 16 4 Final Carried 12 | 6 12 4 Class Distribution -------------------- 54% | Gunner 45% | Mutant Dominant Class ---------------- Mutant | -10/Materials Gunner | -9/Materials Resources | -11 -10 -9 ----------- Run | Scr Mat Mat Matter Collected 749 | 290 152 307 Remotely . | . . . Salvage Created 666 | 90 197 379 Parts 31 | 2 3 26 Haulers Intercepted . | . . . Recyclers Shooed 1 | 1 . . Parts Field Recycled . | . . . Retrieved Matter . | . . . Parts Self-Destructed . | . . . Prevented . | . . . Kills | -11 -10 -9 ------- Run | Scr Mat Mat Combat Hostiles Destroyed 11 | . 4 7 Guns 11 | . 4 7 Classes Destroyed 4 | 1 3 . Recycler 1 | 1 . . Swarmer 1 | . 1 . Grunt 1 | . 1 . Abomination 9 | . 2 7 Best Kill Streak 3 | 1 3 2 Combat Bots Only 3 | . 3 2 Max Kills in Single Turn 1 | 1 1 1 Gunslinging . | . . . Exploded . | . . . Melee . | . . . Uniques/NPCs Destroyed . | . . . Combat | -11 -10 -9 -------- Run | Scr Mat Mat Damage Taken 2394 | . 229 2165 Core 442 | . 30 412 Absorbed by Shields . | . . . Core Remaining (%) 94 | 100 88 . Volleys Fired 70 | 5 22 43 Largest 3 | 2 2 3 Hottest 130 | 40 40 130 Shots Fired 179 | 10 44 125 Gun 179 | 10 44 125 Cannon . | . . . Launcher . | . . . Special . | . . . Kinetic 136 | 10 44 82 Thermal 43 | . . 43 Explosive . | . . . Electromagnetic . | . . . Robot Hit Streak 15 | 3 8 15 Robot Miss Streak 5 | 1 5 2 Penetration Max . | . . . Secondary Targets 2 | . . 2 Max Gunslinging Chain 1 | . . 1 Shots Hit Robots 138 | 6 31 101 Core Hits 36 | 2 10 24 Critical Hits . | . . . Critical Kills . | . . . Critical Parts Destroyed . | . . . Melee Attacks . | . . . Impact . | . . . Slashing . | . . . Piercing . | . . . Sneak Attacks . | . . . Combat Hostiles . | . . . Follow-up Attacks . | . . . Damage Inflicted 1926 | 87 349 1490 Guns 1926 | 87 349 1490 Cannons . | . . . Explosions . | . . . Melee . | . . . Ramming . | . . . Kinetic 1394 | 87 349 958 Thermal 532 | . . 532 Explosive . | . . . Electromagnetic . | . . . Impact . | . . . Slashing . | . . . Piercing . | . . . Highest Corruption 1 | . 1 . Average Corruption 1 | . 1 . Corruption Purged . | . . . Overload Shots . | . . . Overflow Damage . | . . . Projectiles . | . . . Explosions . | . . . Melee . | . . . Knockbacks . | . . . Impact . | . . . Kinetic . | . . . Secondary . | . . . Self-Inflicted Damage . | . . . Shots . | . . . Rammed . | . . . Targets Rammed . | . . . Kicked . | . . . Crushed . | . . . Highest Temperature 255 | . 6 255 Average Temperature 109 | . 6 110 Received Heat Transfer 720 | . 72 648 Siege Activations . | . . . Robots Corrupted . | . . . Combat Hostiles . | . . . Parts Fried . | . . . Impact Corruptions . | . . . Robots Melted . | . . . Combat Hostiles . | . . . Parts Melted 1 | . 1 . Heat Transferred 297 | . . 297 Parts Sabotaged . | . . . Parts Stolen . | . . . Parts Stripped . | . . . Power Chain Reactions . | . . . Missiles Intercepted . | . . . Alert | -11 -10 -9 ------- Run | Scr Mat Mat Peak Influence 43 | 5 43 32 Average Influence 18 | . 21 20 Maximum Alert Level . | . . . Low Security (%) 100 | . . . Level 1 . | . . . Level 2 . | . . . Level 3 . | . . . Level 4 . | . . . Level 5 . | . . . High Security . | . . . Max Security . | . . . Squads Dispatched 9 | . 3 6 Investigation 5 | . 2 3 Extermination . | . . . Reinforcement 3 | . 1 2 Assault 1 | . . 1 Garrison . | . . . Intercept . | . . . Construction Impeded . | . . . Haulers Reinforced . | . . . Stealth | -11 -10 -9 --------- Run | Scr Mat Mat Distress Signals 10 | . 4 6 Communications Jammed . | . . . Distress Signals . | . . . Times Spotted 25 | . 7 18 Peak Tracking Total 10 | . 2 10 Tactical Retreats 3 | . 1 2 Traps | -11 -10 -9 ------- Run | Scr Mat Mat Traps Triggered 1 | . 1 . Indirectly . | . . . Trap Hack Attempts . | . . . Triggered . | . . . Disarmed . | . . . Reprogrammed . | . . . Reused . | . . . Traps Extracted . | . . . Installed . | . . . Triggered . | . . . Machines | -11 -10 -9 ---------- Run | Scr Mat Mat Machines Disabled . | . . . Max in Single Turn . | . . . Machines Sabotaged . | . . . Garrisons Compromised . | . . . Overloaded Fab Kills . | . . . Fab Network Shutdowns . | . . . Hacking | -11 -10 -9 --------- Run | Scr Mat Mat Machines Accessed 3 | . 2 1 Terminals 3 | . 2 1 Fabricators . | . . . Repair Stations . | . . . Recycling Units . | . . . Scanalyzers . | . . . Garrison Access . | . . . Total Hacks 9 | . 4 5 Successful 1 | . 1 . Failed 8 | . 3 5 Catastrophic 2 | . . 2 Database Lockouts . | . . . Manual 9 | . 4 5 Terminals 9 | . 4 5 Fabricators . | . . . Repair Stations . | . . . Recycling Units . | . . . Scanalyzers . | . . . Garrison Access . | . . . Terminal Hacks . | . . . Fabricator Hacks . | . . . Repair Station Hacks . | . . . Recycling Unit Hacks . | . . . Scanalyzer . | . . . Garrison Access Hacks . | . . . Unauthorized Hacks 3 | . 3 . Terminals 1 | . 1 . Track 1 | . 1 . Fabricators . | . . . Repair Stations . | . . . Recycling Units . | . . . Scanalyzers . | . . . Garrison Access . | . . . Data Cores Recovered . | . . . Used . | . . . Hacking Detections 3 | . 2 1 Full Trace Events 1 | . . 1 Feedback Events . | . . . Feedback Blocked . | . . . Robot Schematics Acquired . | . . . Robots Built . | . . . Matter . | . . . Time . | . . . Total Robot Build Rating . | . . . Part Schematics Acquired . | . . . Parts Built . | . . . Matter . | . . . Time . | . . . Total Part Build Rating . | . . . Parts Repaired . | . . . Time . | . . . Parts Recycled . | . . . Recycled Matter . | . . . Retrieved Matter . | . . . Retrieved Components . | . . . Parts Scanalyzed . | . . . Part Schematics Acquired . | . . . Parts Damaged . | . . . Bothacking | -11 -10 -9 ------------ Run | Scr Mat Mat Used RIF Installer . | . . . Robots Hacked . | . . . Non-combat . | . . . Combat . | . . . Robot Hacks Applied . | . . . Relay Couplers Released . | . . . Robots Rewired . | . . . Allies Hacked . | . . . Hacks Repelled . | . . . Allies | -11 -10 -9 -------- Run | Scr Mat Mat Total Allies . | . . . Largest Group . | . . . Highest-Rated Group . | . . . Highest-Rated Ally . | . . . Total Orders . | . . . Ally Attacks . | . . . Total Damage . | . . . Kills . | . . . Allies Corrupted . | . . . Allies Melted . | . . . Intel | -11 -10 -9 ------- Run | Scr Mat Mat Robot Analysis Total . | . . . Derelict Logs Recovered . | . . . Drone Launches . | . . . Drone Recoveries . | . . . Exploration | -11 -10 -9 ------------- Run | Scr Mat Mat Turns Passed 875 | 78 225 572 Spaces Moved 546 | 51 158 337 Core 13 | 2 . 11 Treads . | . . . Legs . | . . . Wheels 533 | 49 158 326 Hover . | . . . Flight . | . . . Fastest Speed 50 | 50 90 50 Average Speed 98 | 88 96 100 Slowest Speed 120 | 90 100 120 Overloaded Moves . | . . . Propulsion Burnouts . | . . . Robots Hopped . | . . . Cave-ins Triggered . | . . . Exploration Rate (%) 23 | 4 29 38 Regions Visited 2 Branch Regions . Pre-discovered Areas . | . . . Known Exits Taken . | . . . Unknown Exits Taken 2 | 1 1 . Scrap Searched . | . . . Spaces Dug . | . . . Terrain Destroyed . | . . . Melee . | . . . Projectile . | . . . AOE . | . . . Actions | -11 -10 -9 --------- Run | Scr Mat Mat Total 697 | 71 186 440 Wait 41 | . . 41 Move 544 | 50 157 337 Hop . | . . . Pick Up 18 | 8 5 5 Fast Attach 10 | 6 1 3 Attach 7 | . . 7 Detach 2 | . . 2 Swap 1 | . 1 . Drop 4 | 2 . 2 Fire 70 | 5 22 43 Melee . | . . . Ram . | . . . Kick . | . . . Crush . | . . . Escape Stasis . | . . . Rewire . | . . . Trap . | . . . Miscellaneous . | . . . Route ------- -11/Scrapyard -10/Materials -9/Materials History --------- Turn | Location | Event 2 | -11/Scrapyard | Met Revision 17 5 | -11/Scrapyard | Discovered new exit (range 16) 79 | -11/Scrapyard | Entered Materials 273 | -10/Materials | Discovered new exit (range 12) 304 | -10/Materials | Entered another Materials area 304 | -9/Materials | Evolved 2 slots: Utility x1, Weapon x1 621 | -9/Materials | Build established: Gunner 816 | -9/Materials | Core integrity fell below 50% 825 | -9/Materials | Discovered new exit (range 8) 835 | -9/Materials | Lost 4 parts (2n2w) 852 | -9/Materials | Core integrity fell below 20% 869 | -9/Materials | Released all parts (3) 876 | -9/Materials | Destroyed by Lesser Abomination with Light EM Pulse Cannon Last Messages --------------- 00859_ Lesser Abomination spits out Lrg. Matter Pod. 00859_ Lesser Abomination absorbs Lrg. Matter Pod. 00859_ Particle Gun destroyed. 00860_ Lesser Abomination forced to warp away. 00860_ 19 Matter blinks away. 00860_ 28 Matter blinks away. 00862_ Lesser Abomination absorbs Ion Engine. 00864_ Paradox Anomaly forced to warp away. 00864_ 16 Matter blinks away. 00866_ 10 Matter blinks away. 00866_ 50 Matter blinks away. 00868_ Com. Wheel destroyed. 00869_ Released Lgt. Treads. 00869_ Released Lrg. Storage Unit. 00870_ Lesser Abomination spits out Imp. Aluminum Leg. 00870_ Lesser Abomination feeds off Hungry Anomaly, taking Titanium Leg. 00870_ Hungry Anomaly eats Lrg. Storage Unit. 00871_ Minor Abomination absorbs Ion Engine. 00872_ Minor Abomination spits out Med. Storage Unit. 00872_ Minor Abomination absorbs Lrg. Storage Unit. Map ----- +----------------------------------------------------+ | ?????# #????? # % """ !#????????? | | ?????# #????"## % % [ #####????? | | ????? ????%% % = #????? | | ?????# #???""""#""""""""# #????? | | ?????" "??? # # #????? | | ???? " " ??????# # ! #????? | | ???? " " ??????# # #????? | | ???? " " ??????# # = #????? | | ????"" " ??????# % # #####????? | | ????"" " ??????# % # #????????? | | ????"" " ??????# % # +????????? | | ???????????????# !#A[ # ?????? | | ???????????????# # [ #####????? | | ???????????????########?#=###+###???????? | | ????????????????????????# # % ??????? | | ????????????????????????# # % % ????? | | ????????????????????????# # % #???? | | ????????????????????????#=# % #???? | | ????????????????????????#[# % #???? | | ????????????????????????# # """ """ #???? | | ????????????????????????#%# """ """ #???? | | ???????????????????????## #?"???""??????? | | ???????????????????????+ #?#???????????? | | ???????????????????????## #?????????????? | | ????????????????????????# #?????????????? | | ????????????????????????#@#?????????????? | | ????????????????????????#%#?????????????? | | ????????????????????????#%#?????????????? | | ????????????????????????# #?????????????? | | ????????????????????????# #?????????????? | | ????????????????????????# #?????????????? | | ???????????????????????? #?????????????? | | ???????????????????????? #?????????????? | | ???????????????????????? %#?????????????? | | ???????????????????????? ??????????????? | | ???????????????????????? ??????????????? | | ????????????????????????% ??????????????? | | ???????????????????????? ??????????????? | | ????????????????????????[%??????????????? | | ????????????????????????%!??????????????? | | ???????????????????????? n??????????????? | | ????????????????????????????????????????? | | ????????????????????????????????????????? | | ????????????????????????????????????????? | | ????????????????????????????????????????? | | ????????????????????????????????????????? | | ????????????????????????????????????????? | | ????????????????????????????????????????? | | ????????????????????????????????????????? | | ????????????????????????????????????????? | +----------------------------------------------------+ Best States ------------- Heat Dissipation 50 Energy Generation 10 Energy Capacity 250 Matter Stores 300 Matter Capacity 300 Sight Range 16 Terrain Scan Density 10 Evasion (%) 50 Item Schematics ----------------- None Robot Schematics ------------------ None Fabricated ------------ Nothing Alien Tech Used ----------------- None Achievements -------------- None Challenges ------------ None Game ------ Seed GravitonAntigravDrive Manual? 0 Play Time 00:08:50 Cumulative 811.2 hours Start 2019.11.03 @ 23:14:38 End 2019.11.03 @ 23:23:55 Sessions 1 Manual Loads 0 Difficulty Rogue Special Mode Halloween2019/Abominations Game No. 314 Rogue 314 Adventurer 0 Explorer 0 Win Type - Total 20 Types 10/1/7/0/0/0/2 Lore% 95 Gallery% 95 Achievement% 79 Wizard Run 0 Options --------- ASCII 0 Keyboard 0 Movement Vi Keybinds 0 Fullscreen 0 Font 12/Crisp Map View 76x50 Tactical HUD 1 Map Filters NONE Filters NONE Steam X RUN: a0a29a42-181a-4620-8b3b-f9a55321f8a5